{"text_format":"3","workbook":"xlsx","n_sheets":2,"sheets":["SM-sarja","Arvo-ottelut"],"read":"whole","date_system":"1900"}

{"sheet":"SM-sarja","index":0,"n_rows":34,"n_cols":22,"rows_kept":34}
[null,"Elmer Meilahti",null,null,"12.2.1920  Lauritsala     -     13.12.1963",{"$nulls":16},"Nimetty Pesäpallon kunniagalleriaan 16.6.2012"]
[null,"MESTARUUSSARJA",null,null,"Runkosarja",{"$nulls":5},"Runkosarja TOP-30",{"$nulls":3},"Arvo-ottelut",null,null,"Mitalit",null,"  Tittelit",null,"Elmer Aleksander ”Emu” Meilahti aloitti pesäpallouransa Etelä-Saimaa Kisassa"]
[null,"Vuosi","Sija","Seura","OTT","KUN","LÖI","TOI",null,"LÖI","TOI","L+T",null,"IL","LL","PPL",1,2,3,null,null,"vuonna 1940. Hänen vanhempansa olivat muuttanut Virosta Lauitsalaan"]
[null,1940,"1.","ESK",null,"välisarja",{"$nulls":15},"1900-luvun alkupuolella. Jatkosodan aikana hän toimi Blenheim pommikoneen"]
[null,1941,null,"ESK",null,"sarja jäi kesken",{"$nulls":15},"lentäjänä ja suoritti 40 pommituslentoa. Samaan aikaan hän pelasi"]
[null,1942,"6.","HP",6,0,4,2,{"$nulls":13},"Haminan Palloilijoissa ja valittiin jatkosodan aikana 1943 Seinäjoella pelattuun"]
[null,1943,"1.","HP",8,0,13,6,{"$nulls":5},1,null,null,1,{"$nulls":4},"Itä−Länsi otteluun."]
[null,1944,{"$nulls":3},"sarja jäi kesken",{"$nulls":15},"Vuonna 1945 sodan jälkeen hän siirtyi Tampereen Pyrintöön, jota hän edusti"]
[null,1945,"6.","TP",null,"suomensarja",{"$nulls":7},1,1,{"$nulls":6},"11 vuotta. Hänet valittiin edellisen lisäksi 10 kertaa Itä−Länteen huolimatta"]
[null,1946,"2.","TP",null,"suomensarja",{"$nulls":8},1,1,{"$nulls":5},"siitä oliko hänen seuransa SM- tai suomensarjassa."]
[null,1947,"13.","TP",12,0,11,5,{"$nulls":5},1,null,1,{"$nulls":5},"Hänen pelipaikkansa oli varavahtina. Hän oli myös kova lyöjä ja voitti lyöjäkuninkuuden"]
[null,1948,"1.","TP",null,"suomensarja",{"$nulls":7},1,1,1,{"$nulls":5},"kahdesti 1949 ja 1950. Erikoisuutenaan kierteinen pystymailalyönti."]
[null,1949,"3.","TP",12,0,29,12,null,"1.","23.",null,null,1,null,1,null,null,1,"Lyöjäkuningas",null,"Vuonna 1950 hän ratkaisi Itä−Länsi ottelun viimeisessä vuorossa"]
[null,1950,"5.","TP",12,3,28,11,null,"1.","25.","2.",null,1,null,1,{"$nulls":3},"Lyöjäkuningas",null,"kunnarillaan ja kahdella tavallisella. Länsi voitti 5−4. Hänen pelityylissään"]
[null,1951,"11.","TP",10,3,11,10,null,"17.",null,"20.",null,1,{"$nulls":7},"on sanottu kuvastuneen raju voima ja rohkeus, ehkä jopa uhkarohkeus."]
[null,1952,"3.","TP",null,"suomensarja",{"$nulls":7},1,{"$nulls":7},"Hän pelasi myös jääpalloa 40−50 -lukujen taitteessa Ilves-Kissoissa. Myös"]
[null,1953,"1.","TP",null,"suomensarja",{"$nulls":7},1,null,1,{"$nulls":5},"tenniksessä ja keilailussa hänet taitonsa olivat mestariluokkaa. Ammatiltaan"]
[null,1954,"5.","TP",12,5,8,8,null,"3.",{"$nulls":3},1,{"$nulls":7},"hän oli insinöörimajuri."]
[null,1955,"5.","TP",12,2,10,4,null,"10.",null,"24.",null,1]
[null,1956,"8.","YJ",14,0,9,8]
[null,1957,"12.","YJ",8,0,5,3]
[null,1958,"2.","LaKi",null,"suomensarja"]
[null,1959,"4.","LaKi",null,"suomensarja"]
[null,1960,"10.","LaKi",null,"suomensarja"]
[null,"Yhteensä",null,null,{"$f":"SUM(E4:E23)","v":106},13,128,69,null,"2-0-1","0-0-0","0-1-0",null,11,3,6,1,0,1]
[null,"Pesispörssi",null,{"v":775,"d":"775.0"}]
[]
[null,"Seurat",null,"ESK = Etelä-Saimaan Kisa  (1930)",{"$nulls":6},"TP = Tampereen Pyrintö  (1896)",{"$nulls":6},"LaKi = Lauritsalan Kisa"]
[{"$nulls":3},"HP = Haminan Palloilijat  (1928)",{"$nulls":6},"YJ = Ylihärmän Junkkarit  (1908)"]
[]
[null,"Laskenta",null,"Vuodet 1948-1958"]
[{"$nulls":3},"Löi 23,99 % joukkueensa juoksuista"]
[{"$nulls":3},"Toi 11,25 % joukkueensa juoksuista"]
[{"$nulls":3},"Näillä prosenteilla joukkueen juoksumäärästä laskettu vuodet 1942-1947"]

{"sheet":"Arvo-ottelut","index":1,"n_rows":30,"n_cols":24,"rows_kept":30}
[null," ITÄ - LÄNSI - KORTTI"]
[null,"Elmer Meilahti","12.2.1920  Lauritsala     -     13.12.1963"]
[null,"MIEHET","  Itä - Länsi, tulos","Joukkue","Seura",null,"V","T","H","Up.","Lj.","Palk.","O","K","L","T","KL",1,2,3,"k","KL-%","Pelinjohtaja      "," Yleisöä"]
[null,"10.10. 1943  Seinäjoki","  5-2","Itä","HP",null,1,null,null,"3va",6,null,1,{"$nulls":10},"1000"]
[null,"07.10. 1945  Hamina","  0-9","Länsi","TP",null,1,null,null,"2va",8,null,1,null,2,{"$nulls":8},"2000"]
[null,"21.09. 1947  Lahti","14-9","Länsi","TP",{"$nulls":3},1,"2va",6,null,1,{"$nulls":10},"4000"]
[null,"26.09. 1948  Pallokenttä, Helsinki","  6-5","Länsi","TP",{"$nulls":3},1,"2va",6,null,1,{"$nulls":10},"2000"]
[null,"11.09. 1949  Harju, Jyväskylä","  9-9","Länsi","TP",null,null,1,null,"2va",5,null,1,null,3,1,{"$nulls":7},"4000"]
[null,"10.09. 1950  Hesperia, Helsinki","  4-5","Länsi","TP",null,1,null,null,"2va",5,"A, sp",1,1,3,1,{"$nulls":7},"4500"]
[null,"09.09. 1951  Oulu","  7-1","Länsi","TP",{"$nulls":3},1,"2va",4,null,1,{"$nulls":10},"2500"]
[null,"07.09. 1952  Hesperia, Helsinki","10-2","Länsi","TP",{"$nulls":3},1,"2va",7,"sp",1,{"$nulls":10},"1700"]
[null,"06.09. 1953  Outokumpu","  7-5","Länsi","TP",{"$nulls":3},1,null,"vai",null,1,{"$nulls":10},"4000"]
[null,"12.09. 1954  Hesperia, Helsinki","  0-0","Länsi","TP",null,null,1,null,"3va",7,null,1,{"$nulls":10},"7631"]
[null,"03.07. 1955  Seinäjoki","  6-5","Länsi","TP",{"$nulls":3},1,"2va",null,null,1,null,1,1,{"$nulls":7},"3000"]
[null,"Yhteensä",{"$nulls":4},{"$f":"SUM(G4:G14)","v":3},{"$f":"SUM(H4:H14)","v":2},{"$f":"SUM(I4:I14)","v":6},{"$nulls":3},{"$f":"SUM(M4:M14)","v":11},1,9,3]
[null,"Ikä ensimmäisessä ottelussa","23 v  7 kk  28 pv"]
[]
[null," LIITTO - LEHDISTÖ - KORTTI"]
[null,"MIEHET","  Tulos","Joukkue","Seura",null,"V","T","H","Up.","Lj.","Palk.","O","K","L","T","KL",1,2,3,"k","  KL-%","Pelinjohtaja      "," Yleisöä"]
[null,"15.08. 1945  Lahti","  19-11","Liitto","TP",null,1,null,null,"3va",null," pL",1,null,null,1,{"$nulls":7},800]
[null,"30.07. 1946  Kouvola","   5-0","Liitto","TP",null,1,null,null,"3va",null,null,1,null,2,{"$nulls":8},1200]
[null,"27.08. 1948  Lahti","  15-10","Liitto","TP",null,1,null,null,"2va",null,"yp, sp",1,2,6,2,{"$nulls":7},1300]
[null,"Yhteensä",{"$nulls":4},{"$f":"SUM(G20:G22)","v":3},{"$nulls":5},{"$f":"SUM(M20:M22)","v":3},2,8,3]
[null,"Ikä ensimmäisessä ottelussa","25 v  6 kk  3 pv"]
[]
[]
[null,"Pesäpallon lisäksi Elmer Meilahti pelasi jääpalloa mestaruussarjassa 1940-luvun lopulla ja 1950-luvulla Ilves-Kissoissa."]
[null,"Myös tenniksessä ja keilailussa hän ylti mestariluokkaan. Meilahti toimi erilaisissa pesäpallon luottamustehtävissä ja sai Pesäpalloliiton kultaisen ansiomerkin."]
[null,"Hänen mieliharrastuksenaan oli metsästys. Meilahti toimi Suomen ilmavoimissa insinööri-majurina."]
[null,"Elmer Meilahti on valittu Pesäpallon kunniagalleriaan."]